Workbook

Sheet 開始
B1: 關於此範本
B2: 使用此範本建立新創企業財務計畫。
B3: 在「概觀」工作表中取得財務計畫的概觀。
B4: 使用新創公司成本範本和損益表範本工作表來記錄新創成本和利潤與損失。
B5: 新創公司成本範例和損益表範例工作表包含表格中的範例資料。
B6: 備註:
B7: 我們已在所有工作表的欄 A 提供額外指示。此文字已刻意隱藏。若要移除文字，請選取欄 A，然後選取 [刪除]。若要取消隱藏文字，請選取 A 欄，然後變更字型色彩。
B8: 若要深入了解表格，請在表格內按 SHIFT 然後按 F10，選取 [表格] 選項，然後選取 [替代文字]。

Sheet 概觀
B1: 新創企業財務計畫
B2: 建立財務計畫好讓所有業務規劃結合在一起。一旦找出您的產品、目標市場和目標客戶，以及定價，您即可開始預測成本、銷售額和利潤。這些項目以及您的假設將可協助您預估您的銷售趨勢預測。業務的另一端則是您預期產生的費用。必須持續監查費用，才能知道自己何時獲利。當您剛剛創業時，還有一點也非常重要，那就是了解在客戶銷售或獲得銷售產生的現金之前，您需要支付哪些費用。
B3: 預計新創成本:下一個索引標籤的表格 (即新創成本範本) 提供空白範本，並提供一些開始使用的指示。下一個索引標籤 (即新創成本範例) 會顯示您開業時可能需要的持續和單次成本項目的範例。許多企業會長期賒賬支付，且不會立刻有現金周轉。預估現金何時開始流入公司非常地重要，除了一次性費用之外，您必須就自己將需要從儲蓄或初期投資中資助經常性項目多少個月來做出假設。
B4: 預估的損益模型:在標籤為 P&L 範本的索引標籤中，您可以找到一個空白範本，用於製作銷售趨勢預測和損益模型。下一個索引標籤 (即 P&L 範例) 所顯示的預估範例是小型企業對其營運首 12 個月的趨勢預測。每個模型中表格的頂端部分會顯示預計的銷售額和毛利。不妨在此建立您的銷售趨勢預測。下一個章節會列出同一個月每項您預計的週期性支出。這些應該與上一個章節中預估的新創成本一致。在此模型的底部，您將會看到您何時開始獲利，以及哪些費用項目對獲利影響最大。
B5: 追蹤您對於估計收入和已售出貨物成本所做出的假設。對於尚未開始運作的企業，您應該了解如何為產品或服務進行預估。以下是一些預估的指導方針：
B6: 收入:首先，請從目標市場 (潛在客戶、企業或消費者群組) 判斷其中有多少將成為第一年的目標。您預期當中有多少百分比會達成交易?他們購買產品或服務的平均交易是什麼?第一個月、第二個月可以完成幾項，以此類比?您可以從第一個月的數字開始，然後以百分比來成長 (例如 10%)。舉例來說，如果您向鎮上的小型企業銷售清潔服務，而您覺得有 500 個企業需要此服務。如果每份合約平均為每個月 250 美元，您需要預估第一年每個月可以與幾個企業簽署合約。
B7: 已售出貨物成本 (COGS):應該計算產品和某些服務的成本。這是生產產品會包含的成本。例如，如果您銷售服裝，COGS 就是您向製造商購買服裝所支付的價格。如果您自己製作，製作服裝的材料和人工就是你的成本。如果是服務，它會是一小時計費工作的直接人工成本。P&L 中低於毛利的所有項目，都是整體業務的固定或間接成本 (例如房租、電話或行銷)。

Sheet 新創公司成本範本
B1: 新創成本
B2: 您的咖啡店 | C2: =TODAY() -> 2022-01-18
B4: 成本項目 | C4: 月份 | D4: 成本/月 | E4: 一次性成本 | F4: 總成本
B5: 廣告/行銷 | F5: =(C5*D5)+IF(E5>0,E5,0) -> NT$0
B6: 員工薪資 | F6: =(C6*D6)+IF(E6>0,E6,0) -> NT$0
B7: 員工薪資稅與福利 | F7: NT$0
B8: 房租/租賃付款/公用事業費用 | F8: NT$0
B9: 運費/郵資 | F9: NT$0
B10: 預估的新創預算 | F10: =SUBTOTAL(109,新創公司[總成本]) -> 0

Sheet 新創公司成本範例
B1: 新創成本
B2: =新創公司成本範本!B2 -> 您的咖啡店 | C2: =TODAY() -> 2022-01-18
B4: 成本項目 | C4: 月份 | D4: 成本/月 | E4: 一次性成本 | F4: 總成本
B5: 廣告/行銷 | C5: 3 | D5: NT$300 | E5: NT$2,000 | F5: =(C5*D5)+IF(E5>0,E5,0) -> NT$2,900
B6: 員工薪資 | C6: 4 | D6: NT$3,500 | E6: NT$2 | F6: =(C6*D6)+IF(E6>0,E6,0) -> NT$14,002
B7: 員工薪資稅與福利 | C7: 4 | D7: NT$500 | E7: NT$2,000 | F7: NT$4,000
B8: 房租/租賃付款/公用事業費用 | C8: 4 | D8: NT$750 | E8: NT$3,000 | F8: NT$6,000
B9: 運費/郵資 | C9: 1 | D9: NT$25 | E9: NT$25 | F9: NT$50
B10: 預估的新創預算 | F10: =SUM(F6:F9) -> NT$24,052

Sheet 損益表範本
B1: 新創成本
B2: =新創公司成本範本!B2 -> 您的咖啡店 | C2: =TODAY() -> 2022-01-18
B4: 收入 | C4: 1 月 | D4: 2 月 | E4: 3 月 | F4: 4 月 | G4: 5 月 | H4: 6 月 | I4: 7 月 | J4: 8 月 | K4: 9 月 | L4: 10 月 | M4: 11 月 | N4: 12 月 | O4: YTD
B5: 預估的產品銷售 | C5: NT$0 | D5: NT$0 | E5: NT$0 | F5: NT$0 | G5: NT$0 | H5: NT$0 | I5: NT$0 | J5: NT$0 | K5: NT$0 | L5: NT$0 | M5: NT$0 | N5: NT$0 | O5: =SUM(C5:N5) -> NT$0
B6: 減除銷售退貨與折扣 | C6: NT$0 | D6: NT$0 | E6: NT$0 | F6: NT$0 | G6: NT$0 | H6: NT$0 | I6: NT$0 | J6: NT$0 | K6: NT$0 | L6: NT$0 | M6: NT$0 | N6: NT$0 | O6: =SUM(C6:N6) -> NT$0
B7: 服務收入 | C7: NT$0 | D7: NT$0 | E7: NT$0 | F7: NT$0 | G7: NT$0 | H7: NT$0 | I7: NT$0 | J7: NT$0 | K7: NT$0 | L7: NT$0 | M7: NT$0 | N7: NT$0 | O7: NT$0
B8: 其他收入 | C8: NT$0 | D8: NT$0 | E8: NT$0 | F8: NT$0 | G8: NT$0 | H8: NT$0 | I8: NT$0 | J8: NT$0 | K8: NT$0 | L8: NT$0 | M8: NT$0 | N8: NT$0 | O8: NT$0
B9: 淨銷售額 | C9: =SUBTOTAL(109,範例收入[1 月]) -> NT$0 | D9: =SUBTOTAL(109,範例收入[2 月]) -> NT$0 | E9: =SUBTOTAL(109,範例收入[3 月]) -> NT$0 | F9: =SUBTOTAL(109,範例收入[4 月]) -> NT$0 | G9: =SUBTOTAL(109,範例收入[5 月]) -> NT$0 | H9: =SUBTOTAL(109,範例收入[6 月]) -> NT$0 | I9: =SUBTOTAL(109,範例收入[7 月]) -> NT$0 | J9: =SUBTOTAL(109,範例收入[8 月]) -> NT$0 | K9: =SUBTOTAL(109,範例收入[9 月]) -> NT$0 | L9: =SUBTOTAL(109,範例收入[10 月]) -> NT$0 | M9: =SUBTOTAL(109,範例收入[11 月]) -> NT$0 | N9: =SUBTOTAL(109,範例收入[12 月]) -> NT$0 | O9: =SUM(範例收入[[#Totals],[1 月]:[12 月]]) -> NT$0
B10: 已售出貨物成本 | C10: =C5*0.4 -> NT$0 | D10: =D5*0.4 -> NT$0 | E10: =E5*0.4 -> NT$0 | F10: =F5*0.4 -> NT$0 | G10: =G5*0.4 -> NT$0 | H10: =H5*0.4 -> NT$0 | I10: =I5*0.4 -> NT$0 | J10: =J5*0.4 -> NT$0 | K10: =K5*0.4 -> NT$0 | L10: =L5*0.4 -> NT$0 | M10: =M5*0.4 -> NT$0 | N10: =N5*0.4 -> NT$0 | O10: NT$0
B11: 毛利 | C11: =IFERROR(範例收入[[#Totals],[1 月]]-C10,"") -> NT$0 | D11: =IFERROR(範例收入[[#Totals],[2 月]]-D10,"") -> NT$0 | E11: =IFERROR(範例收入[[#Totals],[3 月]]-E10,"") -> NT$0 | F11: =IFERROR(範例收入[[#Totals],[4 月]]-F10,"") -> NT$0 | G11: =IFERROR(範例收入[[#Totals],[5 月]]-G10,"") -> NT$0 | H11: =IFERROR(範例收入[[#Totals],[6 月]]-H10,"") -> NT$0 | I11: =IFERROR(範例收入[[#Totals],[7 月]]-I10,"") -> NT$0 | J11: =IFERROR(範例收入[[#Totals],[8 月]]-J10,"") -> NT$0 | K11: =IFERROR(範例收入[[#Totals],[9 月]]-K10,"") -> NT$0 | L11: =IFERROR(範例收入[[#Totals],[10 月]]-L10,"") -> NT$0 | M11: =IFERROR(範例收入[[#Totals],[11 月]]-M10,"") -> NT$0 | N11: =IFERROR(範例收入[[#Totals],[12 月]]-N10,"") -> NT$0 | O11: NT$0
B13: 支出 | C13: 1 月 | D13: 2 月 | E13: 3 月 | F13: 4 月 | G13: 5 月 | H13: 6 月 | I13: 7 月 | J13: 8 月 | K13: 9 月 | L13: 10 月 | M13: 11 月 | N13: 12 月 | O13: YTD
B14: 薪資 | C14: NT$0 | D14: NT$0 | E14: NT$0 | F14: NT$0 | G14: NT$0 | H14: NT$0 | I14: NT$0 | J14: NT$0 | K14: NT$0 | L14: NT$0 | M14: NT$0 | N14: NT$0 | O14: =SUM(C14:N14) -> NT$0
B15: 廣告/行銷 | C15: NT$0 | D15: NT$0 | E15: NT$0 | F15: NT$0 | G15: NT$0 | H15: NT$0 | I15: NT$0 | J15: NT$0 | K15: NT$0 | L15: NT$0 | M15: NT$0 | N15: NT$0 | O15: =SUM(C15:N15) -> NT$0
B16: 銷售佣金 | C16: NT$0 | D16: NT$0 | E16: NT$0 | F16: NT$0 | G16: NT$0 | H16: NT$0 | I16: NT$0 | J16: NT$0 | K16: NT$0 | L16: NT$0 | M16: NT$0 | N16: NT$0 | O16: NT$0
B17: 房租 | C17: NT$0 | D17: NT$0 | E17: NT$0 | F17: NT$0 | G17: NT$0 | H17: NT$0 | I17: NT$0 | J17: NT$0 | K17: NT$0 | L17: NT$0 | M17: NT$0 | N17: NT$0 | O17: NT$0
B18: 其他 1 | C18: NT$0 | D18: NT$0 | E18: NT$0 | F18: NT$0 | G18: NT$0 | H18: NT$0 | I18: NT$0 | J18: NT$0 | K18: NT$0 | L18: NT$0 | M18: NT$0 | N18: NT$0 | O18: NT$0
B19: 總支出 | C19: =IF(SUM(C14:C18)=0,"",SUM(C14:C18)) ->  | O19: =SUM(範例支出[[#Totals],[1 月]:[12 月]]) -> NT$0
B20: 稅前收入 | C20: =IFERROR(損益表範本!$C$11-範例支出[[#Totals],[1 月]],"") ->  | D20: =IFERROR(損益表範本!$C$11-範例支出[[#Totals],[2 月]],"") ->  | E20: =IFERROR(損益表範本!$C$11-範例支出[[#Totals],[3 月]],"") ->  | F20: =IFERROR(損益表範本!$C$11-範例支出[[#Totals],[4 月]],"") ->  | G20: =IFERROR(損益表範本!$C$11-範例支出[[#Totals],[5 月]],"") ->  | H20: =IFERROR(損益表範本!$C$11-範例支出[[#Totals],[6 月]],"") ->  | I20: =IFERROR(損益表範本!$C$11-範例支出[[#Totals],[7 月]],"") ->  | J20: =IFERROR(損益表範本!$C$11-範例支出[[#Totals],[8 月]],"") ->  | K20: =IFERROR(損益表範本!$C$11-範例支出[[#Totals],[9 月]],"") ->  | L20: =IFERROR(損益表範本!$C$11-範例支出[[#Totals],[10 月]],"") ->  | M20: =IFERROR(損益表範本!$C$11-範例支出[[#Totals],[11 月]],"") ->  | N20: =IFERROR(損益表範本!$C$11-範例支出[[#Totals],[12 月]],"") ->  | O20: NT$0
B21: 所得稅支出 | C21: =IFERROR(C20*0.15," ") ->  | D21: =IFERROR(D20*0.15," ") ->  | E21: =IFERROR(E20*0.15," ") ->  | O21: =SUM(損益表範本!$C$21:$N$21) -> NT$0
B23: 淨收益 | C23: =IFERROR(C20-損益表範本!$C$21,"") ->  | D23: =IFERROR(D20-損益表範本!$D$21,"") ->  | E23: =IFERROR(E20-損益表範本!$E$21,"") ->  | F23: =IFERROR(F20-損益表範本!$F$21,"") ->  | G23: =IFERROR(G20-損益表範本!$G$21,"") ->  | H23: =IFERROR(H20-損益表範本!$H$21,"") ->  | I23: =IFERROR(I20-損益表範本!$I$21,"") ->  | J23: =IFERROR(J20-損益表範本!$J$21,"") ->  | K23: =IFERROR(K20-損益表範本!$K$21,"") ->  | L23: =IFERROR(L20-損益表範本!$L$21,"") ->  | M23: =IFERROR(M20-損益表範本!$M$21,"") ->  | N23: =IFERROR(N20-損益表範本!$N$21,"") ->  | O23: =IFERROR(O20-損益表範本!$O$21,"") -> NT$0

Sheet 損益表範例
B1: 新創成本
B2: =新創公司成本範本!B2 -> 您的咖啡店 | C2: =TODAY() -> 2022-01-18
B4: 收入 | C4: 1 月 | D4: 2 月 | E4: 3 月 | F4: 4 月 | G4: 5 月 | H4: 6 月 | I4: 7 月 | J4: 8 月 | K4: 9 月 | L4: 10 月 | M4: 11 月 | N4: 12 月 | O4: YTD
B5: 預估的產品銷售 | C5: NT$5,000 | D5: NT$13,000 | E5: NT$16,000 | F5: NT$7,000 | G5: NT$14,500 | H5: NT$16,400 | I5: NT$22,500 | J5: NT$23,125 | K5: NT$24,549 | L5: NT$22,000 | M5: NT$25,000 | N5: NT$27,349 | O5: =SUM(C5:N5) -> NT$216,423
B6: 減除銷售退貨與折扣 | C6: NT$0 | D6: (NT$350) | E6: NT$0 | F6: (NT$206) | G6: (NT$234) | H6: NT$0 | I6: NT$0 | J6: (NT$280) | K6: (NT$1,200) | L6: (NT$1,600) | M6: NT$0 | N6: (NT$2,400) | O6: =SUM(C6:N6) -> (NT$6,270)
B7: 服務收入 | C7: NT$0 | D7: NT$0 | E7: NT$0 | F7: NT$0 | G7: NT$0 | H7: NT$250 | I7: NT$350 | J7: NT$100 | K7: NT$0 | L7: NT$0 | M7: NT$1,245 | N7: NT$1,360 | O7: NT$3,305
B8: 其他收入 | C8: NT$0 | D8: NT$0 | E8: NT$0 | F8: NT$0 | G8: NT$0 | H8: NT$0 | I8: NT$0 | J8: NT$1,500 | K8: NT$0 | L8: NT$0 | M8: NT$0 | N8: NT$0 | O8: NT$1,500
B9: 淨銷售額 | C9: =SUBTOTAL(109,實際收入[1 月]) -> NT$5,000 | D9: =SUBTOTAL(109,實際收入[2 月]) -> NT$12,650 | E9: =SUBTOTAL(109,實際收入[3 月]) -> NT$16,000 | F9: =SUBTOTAL(109,實際收入[4 月]) -> NT$6,794 | G9: =SUBTOTAL(109,實際收入[5 月]) -> NT$14,266 | H9: =SUBTOTAL(109,實際收入[6 月]) -> NT$16,650 | I9: =SUBTOTAL(109,實際收入[7 月]) -> NT$22,850 | J9: =SUBTOTAL(109,實際收入[8 月]) -> NT$24,445 | K9: =SUBTOTAL(109,實際收入[9 月]) -> NT$23,349 | L9: =SUBTOTAL(109,實際收入[10 月]) -> NT$20,400 | M9: =SUBTOTAL(109,實際收入[11 月]) -> NT$26,245 | N9: =SUBTOTAL(109,實際收入[12 月]) -> NT$26,309 | O9: =SUM(實際收入[[#Totals],[1 月]:[12 月]]) -> NT$214,958
B10: 已售出貨物成本 | C10: =C5*0.4 -> NT$2,000 | D10: =D5*0.4 -> NT$5,200 | E10: =E5*0.4 -> NT$6,400 | F10: =F5*0.4 -> NT$2,800 | G10: =G5*0.4 -> NT$5,800 | H10: =H5*0.4 -> NT$6,560 | I10: =I5*0.4 -> NT$9,000 | J10: =J5*0.4 -> NT$9,250 | K10: =K5*0.4 -> NT$9,820 | L10: =L5*0.4 -> NT$8,800 | M10: =M5*0.4 -> NT$10,000 | N10: =N5*0.4 -> NT$10,940 | O10: NT$86,569
B11: 毛利 | C11: =IFERROR(實際收入[[#Totals],[1 月]]-C10,"") -> NT$3,000 | D11: =IFERROR(實際收入[[#Totals],[2 月]]-D10,"") -> NT$7,450 | E11: =IFERROR(實際收入[[#Totals],[3 月]]-E10,"") -> NT$9,600 | F11: =IFERROR(實際收入[[#Totals],[4 月]]-F10,"") -> NT$3,994 | G11: =IFERROR(實際收入[[#Totals],[5 月]]-G10,"") -> NT$8,466 | H11: =IFERROR(實際收入[[#Totals],[6 月]]-H10,"") -> NT$10,090 | I11: =IFERROR(實際收入[[#Totals],[7 月]]-I10,"") -> NT$13,850 | J11: =IFERROR(實際收入[[#Totals],[8 月]]-J10,"") -> NT$15,195 | K11: =IFERROR(實際收入[[#Totals],[9 月]]-K10,"") -> NT$13,529 | L11: =IFERROR(實際收入[[#Totals],[10 月]]-L10,"") -> NT$11,600 | M11: =IFERROR(實際收入[[#Totals],[11 月]]-M10,"") -> NT$16,245 | N11: =IFERROR(實際收入[[#Totals],[12 月]]-N10,"") -> NT$15,369 | O11: NT$128,389
B13: 支出 | C13: 1 月 | D13: 2 月 | E13: 3 月 | F13: 4 月 | G13: 5 月 | H13: 6 月 | I13: 7 月 | J13: 8 月 | K13: 9 月 | L13: 10 月 | M13: 11 月 | N13: 12 月 | O13: YTD
B14: 薪資 | C14: NT$2,500 | D14: NT$2,500 | E14: NT$3,500 | F14: NT$5,000 | G14: NT$5,000 | H14: NT$5,000 | I14: NT$8,000 | J14: NT$9,000 | K14: NT$9,000 | L14: NT$9,000 | M14: NT$9,000 | N14: NT$9,000 | O14: =SUM(C14:N14) -> NT$76,500
B15: 廣告/行銷 | C15: NT$400 | D15: NT$450 | E15: NT$450 | F15: NT$450 | G15: NT$900 | H15: NT$900 | I15: NT$900 | J15: NT$900 | K15: NT$900 | L15: NT$900 | M15: NT$1,200 | N15: NT$1,200 | O15: =SUM(C15:N15) -> NT$9,550
B16: 銷售佣金 | C16: NT$250 | D16: NT$650 | E16: NT$800 | F16: NT$350 | G16: NT$725 | H16: NT$820 | I16: NT$1,125 | J16: NT$1,156 | K16: NT$1,227 | L16: NT$1,100 | M16: NT$1,250 | N16: NT$1,367 | O16: NT$10,821
B17: 房租 | C17: NT$1,250 | D17: NT$1,250 | E17: NT$1,250 | F17: NT$1,250 | G17: NT$1,250 | H17: NT$1,250 | I17: NT$1,250 | J17: NT$1,250 | K17: NT$1,250 | L17: NT$1,250 | M17: NT$1,250 | N17: NT$1,250 | O17: NT$15,000
B18: 總支出 | C18: =IF(SUM(C14:C17)=0,"",SUM(C14:C17)) -> NT$4,400 | D18: =IF(SUM(D14:D17)=0,"",SUM(D14:D17)) -> NT$4,850 | E18: =IF(SUM(E14:E17)=0,"",SUM(E14:E17)) -> NT$6,000 | F18: =IF(SUM(F14:F17)=0,"",SUM(F14:F17)) -> NT$7,050 | G18: =IF(SUM(G14:G17)=0,"",SUM(G14:G17)) -> NT$7,875 | H18: =IF(SUM(H14:H17)=0,"",SUM(H14:H17)) -> NT$7,970 | I18: =IF(SUM(I14:I17)=0,"",SUM(I14:I17)) -> NT$11,275 | J18: =IF(SUM(J14:J17)=0,"",SUM(J14:J17)) -> NT$12,306 | K18: =IF(SUM(K14:K17)=0,"",SUM(K14:K17)) -> NT$12,377 | L18: =IF(SUM(L14:L17)=0,"",SUM(L14:L17)) -> NT$12,250 | M18: =IF(SUM(M14:M17)=0,"",SUM(M14:M17)) -> NT$12,700 | N18: =IF(SUM(N14:N17)=0,"",SUM(N14:N17)) -> NT$12,817 | O18: =SUM(實際支出[[#Totals],[1 月]:[12 月]]) -> NT$111,871
B19: 稅前收入 | C19: =IFERROR(損益表範例!$C$11-實際支出[[#Totals],[1 月]],"") -> (NT$1,400) | D19: =IFERROR(損益表範例!$D$11-實際支出[[#Totals],[2 月]],"") -> NT$2,600 | E19: =IFERROR(損益表範例!$E$11-實際支出[[#Totals],[3 月]],"") -> NT$3,600 | F19: =IFERROR(損益表範例!$F$11-實際支出[[#Totals],[4 月]],"") -> (NT$3,056) | G19: =IFERROR(損益表範例!$G$11-實際支出[[#Totals],[5 月]],"") -> NT$591 | H19: =IFERROR(損益表範例!$H$11-實際支出[[#Totals],[6 月]],"") -> NT$2,120 | I19: =IFERROR(損益表範例!$I$11-實際支出[[#Totals],[7 月]],"") -> NT$2,575 | J19: =IFERROR(損益表範例!$J$11-實際支出[[#Totals],[8 月]],"") -> NT$2,889 | K19: =IFERROR(損益表範例!$K$11-實際支出[[#Totals],[9 月]],"") -> NT$1,152 | L19: =IFERROR(損益表範例!$L$11-實際支出[[#Totals],[10 月]],"") -> (NT$650) | M19: =IFERROR(損益表範例!$M$11-實際支出[[#Totals],[11 月]],"") -> NT$3,545 | N19: =IFERROR(損益表範例!$N$11-實際支出[[#Totals],[12 月]],"") -> NT$2,552 | O19: =SUM(C19:N19) -> NT$16,518
B20: 所得稅支出 | C20: =C19*0.15 -> (NT$210) | D20: NT$390 | E20: =E19*0.15 -> NT$540 | F20: =F19*0.15 -> (NT$458) | G20: =G19*0.15 -> NT$89 | H20: =H19*0.15 -> NT$318 | I20: =I19*0.15 -> NT$386 | J20: =J19*0.15 -> NT$433 | K20: =K19*0.15 -> NT$173 | L20: =L19*0.15 -> (NT$98) | M20: =M19*0.15 -> NT$532 | N20: =N19*0.15 -> NT$383 | O20: =SUM(損益表範例!$C$20:$N$20) -> NT$2,478
B22: 淨收益 | C22: =IFERROR(C19-損益表範例!$C$20," ") -> (NT$1,190) | D22: =IFERROR(D19-損益表範例!$D$20," ") -> NT$2,210 | E22: =IFERROR(E19-損益表範例!$E$20,"") -> NT$3,060 | F22: =IFERROR(F19-損益表範例!$F$20,"") -> (NT$2,598) | G22: =IFERROR(G19-損益表範例!$G$20,"") -> NT$502 | H22: =IFERROR(H19-損益表範例!$H$20,"") -> NT$1,802 | I22: =IFERROR(I19-損益表範例!$I$20,"") -> NT$2,189 | J22: =IFERROR(J19-損益表範例!$J$20,"") -> NT$2,455 | K22: =IFERROR(K19-損益表範例!$K$20,"") -> NT$979 | L22: =IFERROR(L19-損益表範例!$L$20,"") -> (NT$553) | M22: =IFERROR(M19-損益表範例!$M$20,"") -> NT$3,013 | N22: =IFERROR(N19-損益表範例!$N$20,"") -> NT$2,169 | O22: =IFERROR(O19-損益表範例!$O$20,"") -> NT$14,040
